bitfinex-derivatives/quotes_SOLF0:USTF0_20241127
["timestamp","ask_amount","ask_price","bid_price","bid_amount"]
[1732712409207,0.48687,234.94,234.82,16.72885081]
[1732712409427,0.48687,234.94,234.83,2.36]
[1732712409710,0.48687,234.94,234.84,2.36]
[1732712410100,2.1284,234.9,234.84,2.36]
[1732712410942,2.1285,234.89,234.84,2.36]
[1732712411111,16.72885081,234.93,234.76,2.36]
[1732712411305,4.9616,234.88,234.73,2.36]
[1732712411509,19.58535546,234.87,234.73,2.36]
[1732712411711,2.36,234.87,234.73,2.36]
[1732712412010,19.71474655,234.86,234.73,2.36]
[1732712412210,33.95549736,234.85,234.73,2.36]
[1732712412406,9.17260116,234.84,234.73,2.36]
[1732712412907,4.9616,234.88,234.73,2.36]
[1732712413110,9.17117709,234.87,234.76,2.1297]
[1732712414108,2.1289,234.85,234.76,2.1297]
[1732712414633,2.36,234.85,234.73,2.36]
[1732712415518,21.69045081,234.88,234.73,2.36]
[1732712415705,2.1288,234.86,234.76,2.1297]
[1732712416112,2.1285,234.9,234.8,2.1293]
[1732712416308,17.22205404,234.89,234.74,16.72885081]
[1732712416513,17.22205404,234.88,234.74,16.72885081]
[1732712416709,17.22205404,234.88,234.67,2.1305]
[1732712416710,2.1295,234.79,234.67,2.1305]
[1732712416913,2.1295,234.79,234.62,19.08885081]
[1732712416914,2.36,234.8,234.62,19.08885081]
[1732712417211,4.9865,234.78,234.62,19.08885081]
[1732712417619,7.1161,234.78,234.68,2.1303]
[1732712418525,2.1296,234.77,234.66,2.1305]
[1732712418720,2.36,234.8,234.62,16.72885081]
[1732712418921,2.36,234.8,234.54,2.3946]
[1732712419134,16.72885081,234.76,234.57,16.72885081]
[1732712419321,2.13,234.73,234.63,2.1308]
[1732712419626,2.38,234.73,234.57,16.72885081]
[1732712419817,2.38,234.73,234.6,2.1311]
[1732712419818,2.1302,234.7,234.6,2.1311]
[1732712420019,2.38,234.73,234.57,16.72885081]
[1732712420321,16.72885081,234.72,234.55,2.36]
[1732712420719,16.72885081,234.67,234.52,23.41245896]
[1732712420918,2.1308,234.64,234.52,23.41245896]
[1732712421114,4.8211,234.66,234.52,23.41245896]
[1732712421320,2.38,234.65,234.52,23.41245896]
[1732712421515,2.1309,234.63,234.52,23.41245896]
[1732712421724,16.72885081,234.64,234.52,23.41245896]
[1732712422123,2.38,234.63,234.52,23.41245896]
[1732712422319,16.72885081,234.64,234.52,23.41245896]
[1732712422523,2.38,234.63,234.52,23.41245896]
[1732712422725,2.1312,234.6,234.52,23.41245896]
[1732712422927,2.4234,234.59,234.52,23.41245896]
[1732712423225,2.1315,234.57,234.52,23.41245896]
[1732712423420,2.38,234.57,234.52,23.41245896]
[1732712424127,2.1315,234.56,234.52,23.41245896]
[1732712424718,2.1316,234.55,234.52,23.41245896]
[1732712425440,2.38,234.57,234.52,23.41245896]
[1732712426931,2.1315,234.56,234.52,23.41245896]
[1732712427926,2.1316,234.55,234.52,23.41245896]
[1732712429125,2.1316,234.55,234.51,46.75958057]
[1732712429126,16.72885081,234.56,234.51,46.75958057]
[1732712429328,16.72885081,234.52,234.48,70.19837329]
[1732712429526,2.38,234.51,234.48,70.19837329]
[1732712431030,2.38,234.52,234.48,70.19837329]
[1732712432533,2.38,234.54,234.48,70.19837329]
[1732712434033,2.132,234.51,234.48,70.19837329]
[1732712434232,2.38,234.54,234.48,70.19837329]
[1732712434630,16.72885081,234.52,234.48,70.19837329]
[1732712434840,2.38,234.54,234.42,175.75561416]
[1732712435034,16.72885081,234.53,234.42,175.75561416]
[1732712435331,16.72885081,234.53,234.45,2.1325]
[1732712435834,2.38,234.54,234.45,2.1325]
[1732712436040,2.38,234.54,234.42,175.75561416]
[1732712436041,2.38,234.54,234.46,2.1324]
[1732712436405,2.38,234.54,234.36,20.11570895]
[1732712436540,2.132,234.51,234.44,2.1325]
[1732712436740,2.132,234.51,234.36,20.11570895]
[1732712436741,16.72885081,234.51,234.36,20.11570895]
[1732712437128,2.1323,234.47,234.4,2.1329]
[1732712438128,2.38,234.48,234.4,2.1329]
[1732712438928,2.1323,234.47,234.39,2.133]
[1732712439232,2.38,234.48,234.39,2.133]
[1732712439935,2.38,234.48,234.42,2.1328]
[1732712440137,2.38,234.48,234.36,20.11570895]
[1732712440349,2.38,234.48,234.35,2.38]
[1732712440737,2.38,234.48,234.4,2.1329]
[1732712441341,16.72885081,234.43,234.3,2.1338]
[1732712441540,2.38,234.42,234.27,2.4375]
[1732712441941,2.1331,234.39,234.29,2.1339]
[1732712442643,2.1331,234.39,234.3,2.1338]
[1732712442949,16.72885081,234.43,234.27,2.4375]
[1732712443136,2.38,234.42,234.27,2.4375]
[1732712443340,2.38,234.42,234.3,2.1338]
[1732712443748,2.1331,234.38,234.3,2.1338]
[1732712443938,2.1331,234.38,234.29,2.1339]
[1732712444144,2.38,234.42,234.29,2.1339]
[1732712445042,2.38,234.42,234.27,2.4375]
[1732712445346,16.72885081,234.39,234.27,2.4375]
[1732712445648,2.1337,234.32,234.23,4.5345]
[1732712445949,2.1337,234.32,234.23,2.4001]
[1732712446142,2.1337,234.32,234.17,16.72885081]
[1732712446143,2.1339,234.3,234.19,2.1348]
[1732712446448,2.4202,234.34,234.16,2.38]
[1732712446850,2.134,234.29,234.16,2.38]
[1732712447350,2.1343,234.25,234.16,2.1351]
[1732712447553,16.72885081,234.31,234.13,16.72885081]
[1732712447849,4.8892,234.34,234.17,16.72885081]
[1732712448051,7.0227,234.34,234.17,16.72885081]
[1732712448358,4.8892,234.34,234.17,16.72885081]
[1732712448544,2.1337,234.32,234.14,2.38]
[1732712448851,4.8892,234.34,234.14,2.38]
[1732712449254,16.72885081,234.31,234.15,2.34]
[1732712449456,16.72885081,234.27,234.09,2.5662]
[1732712449648,2.34,234.26,234.09,2.5662]
[1732712451046,2.1345,234.23,234.13,2.1353]
[1732712451242,16.72885081,234.23,234.09,2.5662]
[1732712451645,2.1347,234.21,234.12,2.1355]
[1732712452762,2.34,234.32,234.12,2.34]
[1732712453062,16.72885081,234.3,234.12,2.34]
[1732712453263,4.8892,234.34,234.27,2.1341]
[1732712453458,4.8892,234.34,234.23,2.34]
[1732712453670,2.34,234.33,234.19,2.5508]
[1732712453847,2.34,234.33,234.19,4.6856]
[1732712454149,2.34,234.33,234.15,2.34]
[1732712454150,16.72885081,234.27,234.15,2.34]
[1732712454354,2.1344,234.25,234.15,4.4752]
[1732712454650,2.34,234.26,234.15,2.1352]
[1732712455350,2.34,234.26,234.12,2.34]
[1732712455351,19.06885081,234.27,234.17,2.135]
[1732712455576,428.73495824,234.98,234.18,21.61965081]
[1732712455577,16.72885081,234.41,234.18,21.61965081]
[1732712455755,2.4513,234.44,234.22,16.72885081]
[1732712455756,2.5743,234.4,234.22,16.72885081]
[1732712455967,2.4513,234.44,234.23,4.2013]
[1732712456346,2.1331,234.39,234.3,2.1338]
[1732712456553,2.1331,234.39,234.31,2.34]
[1732712456751,2.1331,234.39,234.23,4.2013]
[1732712456752,16.72885081,234.41,234.29,2.34]
[1732712457249,2.34,234.4,234.29,2.34]
[1732712457654,2.1332,234.37,234.29,2.34]
[1732712457857,2.34,234.4,234.29,2.34]
[1732712458060,2.5743,234.51,234.29,2.34]
[1732712458356,2.1325,234.46,234.3,2.4197]
[1732712458748,2.1325,234.46,234.37,2.1332]
[1732712458949,2.1325,234.46,234.35,2.34]
[1732712459357,16.72885081,234.49,234.35,2.34]
[1732712459549,16.72885081,234.53,234.36,2.5261]
[1732712460956,2.132,234.51,234.36,2.5261]
[1732712461159,16.72885081,234.53,234.36,2.5261]
[1732712461460,16.72885081,234.53,234.44,2.1326]
[1732712461959,2.4399,234.54,234.42,2.34]
[1732712462259,2.4399,234.54,234.45,2.1325]
[1732712462560,2.4399,234.54,234.42,2.34]
[1732712462759,4.5716,234.54,234.44,2.1326]
[1732712462965,2.4399,234.54,234.42,2.34]
[1732712463163,2.4209,234.58,234.42,19.06885081]
[1732712463461,2.4627,234.63,234.42,19.06885081]
[1732712463651,16.72885081,234.57,234.43,2.4393]
[1732712463876,16.72885081,234.57,234.44,2.34]
[1732712464056,2.4991,234.56,234.44,2.34]
[1732712465056,2.1317,234.55,234.44,4.4726]
[1732712465676,2.1312,234.6,234.44,2.34]
[1732712465862,16.72885081,234.61,234.44,2.34]
[1732712466260,2.1311,234.6,234.44,2.34]
[1732712466456,101.0,234.82,234.54,16.72885081]
[1732712466668,2.4354,234.74,234.58,16.72885081]
[1732712466890,8.01147004,234.73,234.58,16.72885081]
[1732712467073,2.4354,234.74,234.58,16.72885081]
[1732712467272,2.4354,234.74,234.56,5.9234]
[1732712468659,2.4354,234.74,234.58,16.72885081]
[1732712468860,2.4354,234.74,234.56,5.9234]
[1732712468861,16.72885081,234.72,234.56,5.9234]
[1732712469072,2.1302,234.71,234.58,2.1313]
[1732712469264,16.72885081,234.72,234.56,5.9234]
[1732712469472,16.72885081,234.72,234.56,3.36]
[1732712469668,2.4354,234.74,234.56,3.36]
[1732712469866,16.72885081,234.73,234.56,3.36]
[1732712470566,2.1304,234.69,234.57,2.1314]
[1732712472265,2.1302,234.71,234.59,2.1312]
[1732712472666,2.1302,234.71,234.56,3.36]
[1732712472867,2.1302,234.71,234.6,2.1311]
[1732712473372,2.1302,234.71,234.61,2.131]
[1732712473771,16.72885081,234.73,234.61,2.131]
[1732712473965,2.1302,234.7,234.61,2.131]
[1732712474474,5.7754,234.74,234.64,2.1307]
[1732712474868,5.7754,234.74,234.55,2.5104]
[1732712474869,2.4354,234.74,234.69,2.1303]
[1732712475175,2.4354,234.74,234.63,3.34]
[1732712476166,3.34,234.81,234.63,3.34]
[1732712476367,2.4413,234.8,234.63,5.8013]
[1732712476973,4.5707,234.8,234.69,2.1303]
[1732712477170,2.4413,234.8,234.66,16.72885081]
[1732712477367,2.4413,234.8,234.67,2.3858]
[1732712477575,2.1294,234.79,234.67,2.3858]
[1732712478779,2.4413,234.8,234.67,2.3858]
[1732712479674,352.49237851,234.84,234.74,2.1298]
[1732712479867,352.49237851,234.84,234.73,3.34]
[1732712480176,4.895,234.9,234.73,3.34]
[1732712480414,4.895,234.9,234.74,16.72885081]
[1732712480588,4.895,234.9,234.78,16.72885081]
[1732712480879,4.895,234.9,234.79,4.5948]
[1732712481084,4.895,234.9,234.8,3.34]
[1732712481289,2.5298,234.9,234.8,3.34]
[1732712481500,4.6576,234.97,234.85,2.1288]
[1732712481672,4.6576,234.97,234.82,16.72885081]
[1732712481673,2.5298,234.97,234.82,16.72885081]
[1732712481871,2.5298,234.97,234.8,3.34]
[1732712482072,2.5298,234.97,234.81,2.1292]
[1732712482478,2.1283,234.92,234.8,5.4692]
[1732712482675,2.5298,234.97,234.8,5.4692]
[1732712483173,2.1282,234.93,234.81,2.1292]
[1732712483379,2.5298,234.97,234.8,3.34]
[1732712484288,2.565,234.99,234.8,3.34]
[1732712484484,16.72885081,234.94,234.8,3.34]
[1732712484678,20.06885081,234.94,234.8,3.34]
[1732712485175,16.72885081,234.98,234.8,3.34]
[1732712485679,16.72885081,234.98,234.81,16.72885081]
[1732712486080,2.1278,234.97,234.81,16.72885081]
[1732712486483,16.72885081,234.84,234.44,33.24]
[1732712486678,2.1293,234.81,234.63,2.3934]
[1732712486870,4.9969,234.83,234.65,16.72885081]
[1732712487076,16.72885081,234.89,234.65,49.96885081]
[1732712487276,2.1288,234.86,234.75,2.1298]
[1732712487477,16.72885081,234.85,234.65,49.96885081]
[1732712487682,16.72885081,234.96,234.66,5.4705]
[1732712487683,2.1296,234.78,234.66,5.4705]
[1732712487877,16.72885081,234.81,234.66,5.4705]
[1732712488082,2.3915,234.8,234.66,5.4705]
[1732712488283,2.1294,234.79,234.68,2.1304]
[1732712488487,2.3915,234.8,234.64,2.4177]
[1732712488685,16.72885081,234.77,234.65,3.34]
[1732712488880,2.1299,234.74,234.66,3.34]
[1732712489379,16.72885081,234.77,234.66,3.34]
[1732712490192,2.1299,234.74,234.67,3.34]
[1732712490819,2.1298,234.76,234.68,3.34]
[1732712490978,2.4691,234.78,234.69,3.34]
[1732712491581,2.4691,234.78,234.69,5.4703]
[1732712491975,2.4691,234.78,234.69,3.34]
[1732712493181,2.4691,234.78,234.69,5.4703]
[1732712493988,2.3915,234.8,234.71,2.1301]
[1732712494188,2.3915,234.8,234.69,3.34]
[1732712495098,2.3915,234.8,234.64,19.14655081]
[1732712495288,2.3915,234.8,234.65,3.34]
[1732712495990,4.5208,234.8,234.7,2.1302]
[1732712496490,2.3915,234.8,234.71,2.1301]
[1732712496685,2.3915,234.8,234.72,3.34]
[1732712496886,2.3915,234.8,234.64,2.4177]
[1732712497191,16.72885081,234.77,234.64,2.4177]
[1732712497594,2.1301,234.72,234.65,3.42]
[1732712498392,2.1299,234.74,234.65,3.42]
[1732712498591,2.5058,234.76,234.65,3.42]
[1732712498789,16.72885081,234.73,234.56,16.72885081]
[1732712498985,16.72885081,234.64,234.53,41.71321417]
[1732712499195,16.72885081,234.68,234.53,39.58141417]
[1732712499394,3.42,234.73,234.53,56.31026498]
[1732712499395,2.4773,234.67,234.53,56.31026498]
[1732712499891,2.4773,234.67,234.54,2.5665]
[1732712500201,18.85895081,234.72,234.54,2.5665]
[1732712500395,16.72885081,234.72,234.54,2.5665]
[1732712500593,2.1302,234.7,234.54,2.5665]
[1732712501088,2.528,234.75,234.54,2.5665]
[1732712501291,2.528,234.75,234.57,16.72885081]
[1732712502406,2.528,234.75,234.66,2.1305]
[1732712502587,2.528,234.75,234.54,2.5665]
[1732712502792,2.528,234.75,234.55,3.42]
[1732712503095,2.1301,234.72,234.55,3.42]
[1732712503901,2.1301,234.72,234.6,2.1311]
[1732712504090,2.1301,234.72,234.55,3.42]
[1732712504487,2.528,234.75,234.66,2.1305]
[1732712504488,4.6578,234.75,234.66,2.1305]
[1732712504690,2.528,234.75,234.65,3.42]
[1732712505097,2.13,234.73,234.65,3.42]
[1732712505344,2.528,234.75,234.65,3.42]
[1732712505995,16.72885081,234.72,234.65,3.42]
[1732712506198,16.72885081,234.72,234.59,3.42]
[1732712506394,16.72885081,234.72,234.64,2.1308]
[1732712506696,16.72885081,234.72,234.59,3.42]
[1732712507000,16.72885081,234.72,234.64,2.1307]
[1732712507199,4.6579,234.75,234.59,3.42]
[1732712507200,2.528,234.75,234.59,3.42]
[1732712507496,2.528,234.75,234.68,2.1304]
[1732712508690,2.528,234.75,234.68,3.42]
[1732712509098,2.528,234.75,234.62,2.4443]
[1732712509300,2.528,234.75,234.69,2.1302]
[1732712509499,2.528,234.75,234.63,3.42]
[1732712510991,2.528,234.75,234.67,2.1305]
[1732712511400,2.528,234.75,234.63,3.42]
[1732712511610,4.6578,234.75,234.66,2.1306]
[1732712512196,4.6578,234.75,234.63,3.42]
[1732712512197,2.13,234.73,234.64,2.1307]
[1732712512408,2.13,234.73,234.62,5.8643]
[1732712512618,2.528,234.75,234.62,5.8643]
[1732712512808,2.1302,234.71,234.62,3.42]
[1732712513105,16.72885081,234.68,234.57,3.42]
[1732712513503,16.72885081,234.68,234.57,5.5513]
[1732712513904,16.72885081,234.68,234.59,2.1312]
[1732712514403,18.85925081,234.68,234.57,5.5513]
[1732712514606,16.72885081,234.68,234.57,3.42]
[1732712515207,16.72885081,234.72,234.57,3.42]
[1732712515401,16.72885081,234.73,234.57,3.42]
[1732712515801,16.72885081,234.73,234.64,2.1307]
[1732712516004,16.72885081,234.73,234.57,3.42]
[1732712516432,16.72885081,234.73,234.64,2.1307]
[1732712517007,18.85885081,234.73,234.64,2.1307]
[1732712517900,18.85885081,234.73,234.57,3.42]
[1732712517901,16.72885081,234.73,234.57,3.42]
[1732712518707,18.85885081,234.73,234.57,3.42]
[1732712519205,18.85885081,234.73,234.63,2.1308]
[1732712519713,16.72885081,234.73,234.63,2.1308]
[1732712519904,2.1301,234.72,234.63,2.1308]
[1732712520110,16.72885081,234.73,234.64,2.1308]
[1732712520705,2.528,234.75,234.57,20.14885081]
[1732712521411,2.528,234.75,234.61,16.72885081]
[1732712521709,6.3818,235.04,234.65,16.72885081]
[1732712521710,16.72885081,234.85,234.65,16.72885081]
[1732712521913,17.18784561,234.84,234.66,8.302]
[1732712522114,17.18784561,234.83,234.66,8.302]
[1732712522412,17.18784561,234.82,234.66,8.302]
[1732712522615,9.15226047,234.82,234.69,16.72885081]
[1732712522807,2.5314,234.86,234.69,16.72885081]
[1732712523208,2.5314,234.86,234.7,1.7656]
[1732712523710,2.5314,234.86,234.8,2.1293]
[1732712523910,2.5314,234.86,234.81,3.42]
[1732712524112,2.5314,234.86,234.81,5.5492]
[1732712524410,2.5314,234.86,234.81,3.42]
[1732712525713,2.5314,234.86,234.81,5.5492]
[1732712525908,44.79191664,234.91,234.81,3.42]
[1732712526207,9.14637187,234.9,234.81,3.42]
[1732712526809,9.14637187,234.9,234.82,2.1291]
[1732712527009,9.14637187,234.9,234.81,3.42]
[1732712527210,2.5365,234.91,234.81,3.42]
[1732712527415,2.5365,234.91,234.83,2.129]
[1732712527709,8.03448431,234.9,234.79,3.3]
[1732712528133,8.03448431,234.9,234.79,5.4294]
[1732712528308,17.18494693,234.9,234.79,5.4294]
[1732712528611,9.15046262,234.89,234.79,3.3]
[1732712529024,2.5365,234.91,234.79,3.3]
[1732712529205,17.1895433,234.9,234.79,3.3]
[1732712529414,9.15302746,234.9,234.79,3.3]
[1732712529614,2.5365,234.91,234.79,3.3]
[1732712529812,8.03798709,234.9,234.79,3.3]
[1732712530011,17.19254261,234.9,234.84,2.1289]
[1732712530216,2.5365,234.91,234.84,2.1289]
[1732712530413,17.19403706,234.9,234.84,2.1289]
[1732712530716,17.19403706,234.89,234.84,2.1289]
[1732712530908,8.03868789,234.88,234.79,3.3]
[1732712531114,295.90351581,234.96,234.87,2.1287]
[1732712531317,17.19626844,234.95,234.87,3.3]
[1732712531518,17.19626844,234.94,234.87,3.3]
[1732712531720,17.19626844,234.93,234.87,5.4287]
[1732712531912,17.19626844,234.92,234.87,3.3]
[1732712532109,8.03980499,234.91,234.87,3.3]
[1732712532431,295.90351581,234.96,234.91,2.1283]
[1732712532623,8.03636511,234.95,234.91,2.1283]
[1732712532813,17.18884361,234.95,234.92,2.1282]
[1732712533008,17.18884361,234.94,234.92,2.1282]
[1732712533211,9.1524785,234.94,234.92,2.1282]
[1732712533416,295.90351581,234.96,234.95,2.128]
[1732712533612,0.43775,234.99,234.95,3.3]
[1732712534514,0.43775,234.99,234.97,2.1278]
[1732712534714,0.43775,234.99,234.95,3.3]
[1732712534911,0.43775,234.99,234.98,2.1277]
[1732712535116,16.72885081,235.14,234.95,3.3]
[1732712535418,17.13073088,235.13,234.96,2.4758]
[1732712535619,17.13073088,235.12,234.96,2.4758]
[1732712535917,17.13073088,235.11,234.97,16.72885081]
[1732712536116,17.13073088,235.1,234.97,16.72885081]
[1732712536321,16.72885081,235.14,234.97,16.72885081]
[1732712536518,17.11014284,235.13,234.97,16.72885081]
[1732712536816,17.11014284,235.12,234.97,16.72885081]
[1732712537022,16.72885081,235.1,234.96,2.4758]
[1732712537517,2.1268,235.08,234.98,2.1277]
[1732712537725,16.72885081,235.06,234.66,8.5224]
[1732712537926,16.72885081,235.06,234.86,16.72885081]
[1732712538119,2.1273,235.03,234.92,2.1282]
[1732712538321,2.1273,235.03,234.93,3.3]
[1732712538829,4.7268,235.06,234.93,3.3]
[1732712539416,4.7268,235.06,234.98,2.1277]
[1732712540015,4.7268,235.06,234.97,2.1277]
[1732712541117,2.5421,235.07,234.93,3.3]
[1732712541410,16.72885081,235.12,234.94,16.72885081]
[1732712541811,2.1265,235.11,235.01,2.1274]
[1732712542014,2.1265,235.11,234.94,16.72885081]
[1732712542015,101.0,234.98,234.55,5.79655924]
[1732712542244,36.5,235.1,234.57,16.72885081]
[1732712542245,16.72885081,234.78,234.57,16.72885081]
[1732712542422,16.72885081,234.86,234.61,16.72885081]
[1732712542630,16.72885081,234.92,234.69,16.72885081]
[1732712542829,16.72885081,234.92,234.7,8.1438]
[1732712543020,16.72885081,234.88,234.7,4.8438]
[1732712543234,16.72885081,234.88,234.71,3.3]
[1732712543723,16.72885081,234.92,234.7,4.8438]
[1732712544014,16.72885081,234.92,234.71,3.3]
[1732712544220,16.72885081,234.92,234.77,2.1296]
[1732712544421,16.72885081,234.92,234.78,3.3]
[1732712544623,16.72885081,234.92,234.79,3.3]
[1732712545016,16.72885081,234.96,234.79,3.3]
[1732712545922,2.128,234.95,234.81,2.1292]
[1732712546230,7.5204,234.97,234.81,16.72885081]
[1732712546525,16.72885081,235.04,234.82,4.8775]
[1732712547123,2.1273,235.03,234.89,2.1285]
[1732712547328,16.72885081,235.04,234.9,3.3]
[1732712547523,5.1094,235.07,234.91,3.3]
[1732712547726,5.1094,235.07,234.92,3.3]
[1732712548025,2.5468,235.07,234.92,3.3]
[1732712548232,2.5468,235.07,234.97,2.1278]
[1732712548526,2.5468,235.07,234.89,16.72885081]
[1732712548722,2.5468,235.07,234.9,3.3]
[1732712548923,16.72885081,235.08,234.9,3.3]
[1732712549325,2.1266,235.11,234.99,2.1275]
[1732712549522,2.1266,235.11,235.0,3.3]
[1732712551029,16.72885081,235.12,235.0,5.4275]
[1732712551223,16.72885081,235.12,235.01,3.3]
[1732712551424,16.72885081,235.13,235.02,3.3]
[1732712551631,16.72885081,235.13,235.03,3.3]
[1732712551819,16.72885081,235.09,234.89,16.72885081]
[1732712552023,16.72885081,235.09,234.9,3.3]
[1732712552357,16.72885081,235.11,234.9,3.3]
[1732712552518,18.85535081,235.11,234.99,2.1276]
[1732712552719,16.72885081,235.11,235.0,3.3]
[1732712552926,16.72885081,235.11,235.01,3.3]
[1732712553126,2.1266,235.1,235.02,3.3]
[1732712554831,16.72885081,235.11,234.89,16.72885081]
[1732712555048,16.72885081,235.07,234.86,1.7735]
[1732712555228,16.72885081,235.03,234.87,3.3]
[1732712556037,16.72885081,235.03,234.89,2.1284]
[1732712556238,2.611,235.02,234.88,3.3]
[1732712556440,5.0762,235.02,234.88,3.3]
[1732712556635,16.72885081,234.99,234.81,16.72885081]
[1732712556931,5.0762,235.02,234.76,33.2]
[1732712556932,16.72885081,234.91,234.83,3.22]
[1732712557126,2.1285,234.89,234.84,3.22]
[1732712557328,16.72885081,234.91,234.84,3.22]
[1732712557524,16.72885081,234.95,234.84,3.22]
[1732712557734,2.1282,234.93,234.84,3.22]
[1732712558136,16.72885081,234.95,234.84,3.22]
[1732712560140,16.72885081,234.99,234.84,3.22]
[1732712560543,2.1277,234.98,234.87,2.1287]
[1732712560935,16.72885081,234.99,234.84,3.22]
[1732712561635,2.1278,234.97,234.85,2.1288]
[1732712561834,2.1278,234.97,234.84,3.22]
[1732712562238,16.72885081,234.99,234.85,3.22]
[1732712562239,2.128,234.95,234.85,3.22]
[1732712562843,2.128,234.95,234.86,3.22]
[1732712563036,2.128,234.95,234.87,3.22]
[1732712563438,16.72885081,234.99,234.87,3.22]
[1732712563439,2.1281,234.94,234.87,3.22]
[1732712563835,16.72885081,234.99,234.87,3.22]
[1732712564442,2.128,234.96,234.87,3.22]
[1732712565237,16.72885081,234.99,234.89,2.1285]
[1732712565238,18.85655081,234.99,234.89,2.1285]
[1732712567441,2.1279,234.97,234.88,3.22]
[1732712567646,16.72885081,234.99,234.88,3.22]
[1732712568345,2.1279,234.97,234.88,5.3486]
[1732712568744,2.5425,235.01,234.88,3.22]
[1732712569945,4.6699,235.01,234.91,2.1283]
[1732712570344,4.6699,235.01,234.81,2.4801]
[1732712570345,2.5425,235.01,234.81,2.4801]
[1732712570649,2.5425,235.01,234.82,3.22]
[1732712571044,2.1276,234.99,234.89,2.1284]
[1732712571260,2.1276,234.99,234.9,3.22]
[1732712571846,2.1277,234.98,234.9,3.22]
[1732712574250,2.128,234.95,234.86,2.1287]
[1732712574457,2.128,234.95,234.87,3.22]
[1732712574773,16.72885081,234.95,234.86,3.22]
[1732712575053,16.72885081,234.95,234.83,3.22]
[1732712575453,2.1284,234.91,234.83,3.22]
[1732712576258,16.72885081,234.91,234.8,3.22]
[1732712576558,15.68721229,234.9,234.8,3.22]
[1732712576755,2.1286,234.89,234.8,3.22]
[1732712577257,7.6365,234.9,234.8,5.3493]
[1732712577557,2.1287,234.88,234.8,3.22]
[1732712577770,7.6365,234.9,234.8,3.22]
[1732712578157,2.1285,234.89,234.81,2.1292]
[1732712578759,7.6365,234.9,234.81,2.1292]
[1732712578959,2.1286,234.88,234.81,2.1292]
[1732712579357,2.128,234.95,234.8,19.94885081]
[1732712579566,17.21022321,234.94,234.8,19.94885081]
[1732712579868,21.84695081,234.99,234.8,19.94885081]
[1732712580169,17.20800275,234.98,234.8,19.94885081]
[1732712580365,17.20800275,234.97,234.8,19.94885081]
[1732712580565,9.16264026,234.96,234.8,19.94885081]
[1732712580762,16.72885081,234.95,234.76,49.92885081]
[1732712580977,16.72885081,234.91,234.77,3.22]
[1732712581366,9.16677048,234.9,234.77,3.22]
[1732712581663,9.16677048,234.9,234.78,3.22]
[1732712582257,2.1282,234.93,234.78,3.22]
[1732712582462,17.21772138,234.92,234.78,3.22]
[1732712582760,18.85685081,234.95,234.78,3.22]
[1732712582970,17.21726161,234.94,234.78,3.22]
[1732712583166,17.21726161,234.93,234.78,3.22]
[1732712583373,2.1281,234.94,234.82,2.1291]
[1732712583666,9.16794816,234.93,234.78,3.22]
[1732712583862,2.1278,234.97,234.88,2.1286]
[1732712584086,17.21721982,234.96,234.87,3.22]
[1732712584390,7.2457,234.99,234.9,2.1283]
[1732712584568,9.16829532,234.98,234.88,3.22]
[1732712584870,9.16829532,234.98,234.92,2.1282]
[1732712584871,8.05044481,234.97,234.92,2.1282]
[1732712585068,5.1181,234.99,234.88,3.22]
[1732712585271,17.21945803,234.98,234.88,3.22]
[1732712585471,5.1181,234.99,234.88,3.22]
[1732712585670,9.16947755,234.98,234.88,3.22]
[1732712585965,2.5554,234.99,234.88,3.22]